[Event "December 19 Early 2023"]
[Site "https://www.chess.com"]
[Date "2023.12.19"]
[Round "11"]
[White "Haug, Havard"]
[Black "Tokhirjonova, Gulrukhbegim"]
[Result "1-0"]
[Board "39"]
[TimeControl "180+1"]
[WhiteFideId "1547887"]
[BlackFideId "14203626"]
[WhiteElo "2343"]
[BlackElo "2265"]
[WhiteTeam "NOR"]
[BlackTeam "USA"]
[WhiteClock "0:01:19"]
[BlackClock "0:00:47"]

1. e4 {[%clk 0:03:00]}  e5 {[%clk 0:02:59]} 2. Nc3 {[%clk 0:03:00]}  Nc6 {[%clk 0:02:59]} 3. Bc4 {[%clk 0:02:59]}  Nf6 {[%clk 0:02:59]} 4. d3 {[%clk 0:02:59]}  Bc5 {[%clk 0:02:59]} 5. Nf3 {[%clk 0:02:59]}  d6 {[%clk 0:02:59]} 6. O-O {[%clk 0:03:00]}  h6 {[%clk 0:02:58]} 7. Be3 {[%clk 0:02:59]}  a6 {[%clk 0:02:57]} 8. Bxc5 {[%clk 0:02:55]}  dxc5 {[%clk 0:02:53]} 9. Nd5 {[%clk 0:02:56]}  O-O {[%clk 0:02:50]} 10. c3 {[%clk 0:02:53]}  Be6 {[%clk 0:02:49]} 11. Ne3 {[%clk 0:02:50]}  Qd6 {[%clk 0:02:43]} 12. Qb3 {[%clk 0:02:47]}  Na5 {[%clk 0:02:29]} 13. Qc2 {[%clk 0:02:43]}  Nxc4 {[%clk 0:02:27]} 14. Nxc4 {[%clk 0:02:44]}  Bxc4 {[%clk 0:02:26]} 15. dxc4 {[%clk 0:02:45]}  Qe6 {[%clk 0:02:26]} 16. b3 {[%clk 0:02:42]}  Rad8 {[%clk 0:02:24]} 17. Rfd1 {[%clk 0:02:40]}  Rfe8 {[%clk 0:02:22]} 18. Nd2 {[%clk 0:02:29]}  Nh5 {[%clk 0:02:20]} 19. Nf1 {[%clk 0:02:25]}  Nf4 {[%clk 0:02:16]} 20. Ne3 {[%clk 0:02:22]}  c6 {[%clk 0:02:13]} 21. g3 {[%clk 0:02:17]}  Nh3+ {[%clk 0:02:04]} 22. Kh1 {[%clk 0:01:53]}  Qf6 {[%clk 0:01:57]} 23. Kg2 {[%clk 0:01:40]}  Ng5 {[%clk 0:01:54]} 24. Qe2 {[%clk 0:01:11]}  Nxe4 {[%clk 0:01:50]} 25. Rxd8 {[%clk 0:00:48]}  Rxd8 {[%clk 0:01:51]} 26. Re1 {[%clk 0:00:47]}  Rd2 {[%clk 0:01:47]} 27. Ng4 {[%clk 0:00:45]}  Rxe2 {[%clk 0:01:10]} 28. Nxf6+ {[%clk 0:00:44]}  gxf6 {[%clk 0:01:10]} 29. Rxe2 {[%clk 0:00:45]}  Nxc3 {[%clk 0:01:11]} 30. Rd2 {[%clk 0:00:45]}  b5 {[%clk 0:01:08]} 31. Rd6 {[%clk 0:00:38]}  Nxa2 {[%clk 0:01:00]} 32. Rxc6 {[%clk 0:00:38]}  Nc1 {[%clk 0:00:31]} 33. cxb5 {[%clk 0:00:28]}  axb5 {[%clk 0:00:30]} 34. b4 {[%clk 0:00:27]}  c4 {[%clk 0:00:28]} 35. Rc5 {[%clk 0:00:26]}  Nd3 {[%clk 0:00:26]} 36. Rxb5 {[%clk 0:00:24]}  c3 {[%clk 0:00:26]} 37. Rb8+ {[%clk 0:00:22]}  Kg7 {[%clk 0:00:26]} 38. b5 {[%clk 0:00:20]}  c2 {[%clk 0:00:03]} 39. Rc8 {[%clk 0:00:18]}  c1=Q {[%clk 0:00:01]} 40. Rxc1 {[%clk 0:00:19]}  Nxc1 {[%clk 0:00:01]} 41. b6 {[%clk 0:00:19]}  Nd3 {[%clk 0:00:02]} 42. b7 {[%clk 0:00:19]}  f5 {[%clk 0:00:03]} 43. b8=Q {[%clk 0:00:19]}  e4 {[%clk 0:00:03]} 44. h4 {[%clk 0:00:18]}  h5 {[%clk 0:00:03]} 45. Kf1 {[%clk 0:00:18]}  Kg6 {[%clk 0:00:04]} 46. Ke2 {[%clk 0:00:18]}  f6 {[%clk 0:00:04]} 47. Ke3 {[%clk 0:00:18]}  Ne5 {[%clk 0:00:04]} 48. Qg8+ {[%clk 0:00:15]}  Kh6 {[%clk 0:00:04]} 49. Kd4 {[%clk 0:00:15]}  Ng4 {[%clk 0:00:03]} 50. Kd5 {[%clk 0:00:11]}  Nxf2 {[%clk 0:00:03]} 51. Ke6 {[%clk 0:00:11]}  Ng4 {[%clk 0:00:02]} 52. Kf7 {[%clk 0:00:11]}  Ne5+ {[%clk 0:00:02]} 53. Kxf6 {[%clk 0:00:11]}  Ng4+ {[%clk 0:00:02]} 54. Kxf5 {[%clk 0:00:11]}  Ne3+ {[%clk 0:00:03]} 55. Kxe4 {[%clk 0:00:11]}  Ng4 {[%clk 0:00:03]} 56. Kf4 {[%clk 0:00:10]}  Nf6 {[%clk 0:00:01]} 57. Qg5+ {[%clk 0:00:10]}  Kh7 {[%clk 0:00:02]} 58. Qxf6 {[%clk 0:00:11]}  Kg8 {[%clk 0:00:02]} 59. Qe7 {[%clk 0:00:12]}  Kh8 {[%clk 0:00:03]} 60. Kf3 {[%clk 0:00:13]}  Kg8 {[%clk 0:00:03]} 61. Kf2 {[%clk 0:00:14]}  Kh8 {[%clk 0:00:04]} 62. Kf1 {[%clk 0:00:15]}  Kg8 {[%clk 0:00:05]} 63. Ke1 {[%clk 0:00:15]}  Kh8 {[%clk 0:00:06]} 64. Kd1 {[%clk 0:00:16]}  Kg8 {[%clk 0:00:06]} 65. Kc1 {[%clk 0:00:17]}  Kh8 {[%clk 0:00:07]} 66. Kb1 {[%clk 0:00:18]}  Kg8 {[%clk 0:00:08]} 67. Ka1 {[%clk 0:00:19]}  Kh8 {[%clk 0:00:08]} 68. Ka2 {[%clk 0:00:20]}  Kg8 {[%clk 0:00:09]} 69. Ka3 {[%clk 0:00:21]}  Kh8 {[%clk 0:00:10]} 70. Ka4 {[%clk 0:00:22]}  Kg8 {[%clk 0:00:11]} 71. Kb4 {[%clk 0:00:23]}  Kh8 {[%clk 0:00:12]} 72. Kc4 {[%clk 0:00:24]}  Kg8 {[%clk 0:00:13]} 73. Kd4 {[%clk 0:00:24]}  Kh8 {[%clk 0:00:12]} 74. Ke4 {[%clk 0:00:25]}  Kg8 {[%clk 0:00:13]} 75. Ke5 {[%clk 0:00:26]}  Kh8 {[%clk 0:00:13]} 76. Kf5 {[%clk 0:00:27]}  Kg8 {[%clk 0:00:14]} 77. Kg5 {[%clk 0:00:28]}  Kh8 {[%clk 0:00:14]} 78. Kxh5 {[%clk 0:00:29]}  Kg8 {[%clk 0:00:13]} 79. Kg4 {[%clk 0:00:30]}  Kh8 {[%clk 0:00:14]} 80. Kf3 {[%clk 0:00:31]}  Kg8 {[%clk 0:00:14]} 81. Ke2 {[%clk 0:00:32]}  Kh8 {[%clk 0:00:15]} 82. Ke1 {[%clk 0:00:33]}  Kg8 {[%clk 0:00:16]} 83. Kd1 {[%clk 0:00:33]}  Kh8 {[%clk 0:00:17]} 84. Kc1 {[%clk 0:00:34]}  Kg8 {[%clk 0:00:18]} 85. Kb1 {[%clk 0:00:35]}  Kh8 {[%clk 0:00:19]} 86. Ka1 {[%clk 0:00:36]}  Kg8 {[%clk 0:00:20]} 87. Ka2 {[%clk 0:00:37]}  Kh8 {[%clk 0:00:20]} 88. Ka3 {[%clk 0:00:38]}  Kg8 {[%clk 0:00:21]} 89. Ka4 {[%clk 0:00:39]}  Kh8 {[%clk 0:00:22]} 90. Ka5 {[%clk 0:00:40]}  Kg8 {[%clk 0:00:23]} 91. g4 {[%clk 0:00:41]}  Kh8 {[%clk 0:00:24]} 92. Kb5 {[%clk 0:00:42]}  Kg8 {[%clk 0:00:24]} 93. Kc5 {[%clk 0:00:42]}  Kh8 {[%clk 0:00:25]} 94. Kd4 {[%clk 0:00:43]}  Kg8 {[%clk 0:00:26]} 95. Ke4 {[%clk 0:00:44]}  Kh8 {[%clk 0:00:27]} 96. Ke3 {[%clk 0:00:45]}  Kg8 {[%clk 0:00:28]} 97. Kf2 {[%clk 0:00:46]}  Kh8 {[%clk 0:00:28]} 98. Kg1 {[%clk 0:00:47]}  Kg8 {[%clk 0:00:29]} 99. h5 {[%clk 0:00:48]}  Kh8 {[%clk 0:00:28]} 100. Kh1 {[%clk 0:00:49]}  Kg8 {[%clk 0:00:29]} 101. Kh2 {[%clk 0:00:50]}  Kh8 {[%clk 0:00:30]} 102. Kh3 {[%clk 0:00:51]}  Kg8 {[%clk 0:00:31]} 103. Kh4 {[%clk 0:00:51]}  Kh8 {[%clk 0:00:32]} 104. Kg5 {[%clk 0:00:52]}  Kg8 {[%clk 0:00:33]} 105. Kf5 {[%clk 0:00:53]}  Kh8 {[%clk 0:00:34]} 106. Ke5 {[%clk 0:00:54]}  Kg8 {[%clk 0:00:35]} 107. Kd5 {[%clk 0:00:55]}  Kh8 {[%clk 0:00:35]} 108. Kd6 {[%clk 0:00:56]}  Kg8 {[%clk 0:00:36]} 109. Kc6 {[%clk 0:00:57]}  Kh8 {[%clk 0:00:37]} 110. Kb6 {[%clk 0:00:58]}  Kg8 {[%clk 0:00:38]} 111. Ka6 {[%clk 0:00:59]}  Kh8 {[%clk 0:00:39]} 112. Ka7 {[%clk 0:01:00]}  Kg8 {[%clk 0:00:39]} 113. Ka8 {[%clk 0:01:00]}  Kh8 {[%clk 0:00:40]} 114. g5 {[%clk 0:01:01]}  Kg8 {[%clk 0:00:41]} 115. Kb8 {[%clk 0:01:02]}  Kh8 {[%clk 0:00:42]} 116. Kb7 {[%clk 0:01:03]}  Kg8 {[%clk 0:00:42]} 117. Kb6 {[%clk 0:01:04]}  Kh8 {[%clk 0:00:43]} 118. Kb5 {[%clk 0:01:05]}  Kg8 {[%clk 0:00:44]} 119. Kb4 {[%clk 0:01:06]}  Kh8 {[%clk 0:00:45]} 120. Kb3 {[%clk 0:01:07]}  Kg8 {[%clk 0:00:45]} 121. Kb2 {[%clk 0:01:08]}  Kh8 {[%clk 0:00:46]} 122. Kb1 {[%clk 0:01:09]}  Kg8 {[%clk 0:00:44]} 123. Kc1 {[%clk 0:01:09]}  Kh8 {[%clk 0:00:44]} 124. Kd1 {[%clk 0:01:10]}  Kg8 {[%clk 0:00:43]} 125. Ke1 {[%clk 0:01:11]}  Kh8 {[%clk 0:00:43]} 126. Kf1 {[%clk 0:01:12]}  Kg8 {[%clk 0:00:44]} 127. g6 {[%clk 0:01:13]}  Kh8 {[%clk 0:00:45]} 128. Kg2 {[%clk 0:01:14]}  Kg8 {[%clk 0:00:45]} 129. Kf3 {[%clk 0:01:15]}  Kh8 {[%clk 0:00:46]} 130. Kf4 {[%clk 0:01:16]}  Kg8 {[%clk 0:00:46]} 131. Kf5 {[%clk 0:01:17]}  Kh8 {[%clk 0:00:47]} 132. Kf6 {[%clk 0:01:18]}  Kg8 {[%clk 0:00:47]} 133. h6 {[%clk 0:01:18]}  Kh8 {[%clk 0:00:47]} 134. Qe8# {[%clk 0:01:19]} 1-0

[Event "December 19 Early 2023"]
[Site "https://www.chess.com"]
[Date "2023.12.19"]
[Round "11"]
[White "Al-Tarboush, Ward"]
[Black "Yeremyan, Alen"]
[Result "0-1"]
[Board "41"]
[TimeControl "180+1"]
[WhiteFideId "7601450"]
[BlackFideId "13308998"]
[WhiteElo "2278"]
[BlackElo "2160"]
[WhiteTeam "NOR"]
[BlackTeam "ARM"]
[WhiteClock "0:00:01"]
[BlackClock "0:00:18"]

1. e4 {[%clk 0:03:00]}  Nf6 {[%clk 0:02:59]} 2. e5 {[%clk 0:03:00]}  Nd5 {[%clk 0:03:00]} 3. d4 {[%clk 0:03:00]}  d6 {[%clk 0:03:00]} 4. Nf3 {[%clk 0:03:00]}  Bg4 {[%clk 0:02:59]} 5. Be2 {[%clk 0:03:00]}  c6 {[%clk 0:02:59]} 6. c4 {[%clk 0:03:00]}  Nb6 {[%clk 0:02:58]} 7. exd6 {[%clk 0:03:00]}  exd6 {[%clk 0:02:58]} 8. O-O {[%clk 0:03:00]}  Be7 {[%clk 0:02:58]} 9. Nc3 {[%clk 0:03:00]}  O-O {[%clk 0:02:58]} 10. b3 {[%clk 0:02:59]}  Bf6 {[%clk 0:02:57]} 11. h3 {[%clk 0:02:58]}  Bxf3 {[%clk 0:02:57]} 12. Bxf3 {[%clk 0:02:59]}  d5 {[%clk 0:02:56]} 13. cxd5 {[%clk 0:02:55]}  Nxd5 {[%clk 0:02:57]} 14. Nxd5 {[%clk 0:02:55]}  cxd5 {[%clk 0:02:57]} 15. Re1 {[%clk 0:02:55]}  Nc6 {[%clk 0:02:58]} 16. Ba3 {[%clk 0:02:55]}  Re8 {[%clk 0:02:57]} 17. Rxe8+ {[%clk 0:02:55]}  Qxe8 {[%clk 0:02:58]} 18. Bxd5 {[%clk 0:02:55]}  Nxd4 {[%clk 0:02:59]} 19. Rb1 {[%clk 0:02:31]}  Rd8 {[%clk 0:02:56]} 20. Bc4 {[%clk 0:02:30]}  Nb5 {[%clk 0:01:50]} 21. Qc1 {[%clk 0:02:17]}  Nc3 {[%clk 0:01:43]} 22. Ra1 {[%clk 0:02:08]}  b5 {[%clk 0:01:42]} 23. Bf1 {[%clk 0:01:55]}  Rd1 {[%clk 0:01:27]} 24. Qxd1 {[%clk 0:01:52]}  Nxd1 {[%clk 0:01:27]} 25. Rxd1 {[%clk 0:01:53]}  h5 {[%clk 0:01:26]} 26. Bc5 {[%clk 0:01:51]}  a6 {[%clk 0:01:26]} 27. g3 {[%clk 0:01:45]}  Qc6 {[%clk 0:01:25]} 28. Be3 {[%clk 0:01:43]}  h4 {[%clk 0:01:23]} 29. g4 {[%clk 0:01:42]}  Qc2 {[%clk 0:01:15]} 30. Rd2 {[%clk 0:01:42]}  Qb1 {[%clk 0:01:15]} 31. Kg2 {[%clk 0:01:38]}  Qe4+ {[%clk 0:01:14]} 32. Kg1 {[%clk 0:01:38]}  g6 {[%clk 0:01:15]} 33. Bg2 {[%clk 0:01:32]}  Qb1+ {[%clk 0:01:13]} 34. Bf1 {[%clk 0:01:29]}  Kg7 {[%clk 0:01:11]} 35. g5 {[%clk 0:01:27]}  Be5 {[%clk 0:01:09]} 36. f4 {[%clk 0:01:13]}  Qe1 {[%clk 0:01:01]} 37. Re2 {[%clk 0:01:03]}  Qg3+ {[%clk 0:01:00]} 38. Bg2 {[%clk 0:01:03]}  Bxf4 {[%clk 0:00:54]} 39. Bd4+ {[%clk 0:01:03]}  Kf8 {[%clk 0:00:54]} 40. Bf2 {[%clk 0:00:43]}  Qxg5 {[%clk 0:00:52]} 41. Kf1 {[%clk 0:00:33]}  Bd6 {[%clk 0:00:51]} 42. Bf3 {[%clk 0:00:33]}  Qc1+ {[%clk 0:00:50]} 43. Kg2 {[%clk 0:00:32]}  Qg5+ {[%clk 0:00:50]} 44. Kf1 {[%clk 0:00:33]}  Qf4 {[%clk 0:00:51]} 45. Bd5 {[%clk 0:00:23]}  Qc1+ {[%clk 0:00:48]} 46. Re1 {[%clk 0:00:21]}  Qd2 {[%clk 0:00:48]} 47. Bb7 {[%clk 0:00:19]}  Qxa2 {[%clk 0:00:48]} 48. Rd1 {[%clk 0:00:16]}  Be7 {[%clk 0:00:45]} 49. Bd5 {[%clk 0:00:15]}  Qc2 {[%clk 0:00:44]} 50. Rd4 {[%clk 0:00:14]}  Bc5 {[%clk 0:00:43]} 51. Rf4 {[%clk 0:00:15]}  Bxf2 {[%clk 0:00:42]} 52. Rxf7+ {[%clk 0:00:13]}  Ke8 {[%clk 0:00:42]} 53. Rxf2 {[%clk 0:00:10]}  Qd3+ {[%clk 0:00:43]} 54. Re2+ {[%clk 0:00:10]}  Kf8 {[%clk 0:00:42]} 55. Be6 {[%clk 0:00:10]}  Kg7 {[%clk 0:00:38]} 56. Kf2 {[%clk 0:00:10]}  Qg3+ {[%clk 0:00:37]} 57. Kf1 {[%clk 0:00:09]}  a5 {[%clk 0:00:38]} 58. Bd7 {[%clk 0:00:09]}  Qf3+ {[%clk 0:00:31]} 59. Ke1 {[%clk 0:00:07]}  Qc3+ {[%clk 0:00:31]} 60. Kf1 {[%clk 0:00:06]}  Qa1+ {[%clk 0:00:29]} 61. Kg2 {[%clk 0:00:06]}  Qd1 {[%clk 0:00:26]} 62. Re7+ {[%clk 0:00:05]}  Kf6 {[%clk 0:00:21]} 63. Rh7 {[%clk 0:00:04]}  Qd5+ {[%clk 0:00:20]} 64. Kh2 {[%clk 0:00:04]}  Qxb3 {[%clk 0:00:18]} 65. Bg4 {[%clk 0:00:04]}  Qg3+ {[%clk 0:00:18]} 66. Kh1 {[%clk 0:00:04]}  b4 {[%clk 0:00:18]} 67. Rb7 {[%clk 0:00:04]}  Qe1+ {[%clk 0:00:17]} 68. Kg2 {[%clk 0:00:04]}  Qd2+ {[%clk 0:00:18]} 69. Kh1 {[%clk 0:00:01]}  Qd5+ {[%clk 0:00:18]} 0-1

[Event "December 19 Early 2023"]
[Site "https://www.chess.com"]
[Date "2023.12.19"]
[Round "11"]
[White "Kozak, Antoni"]
[Black "Burovic, Rijad"]
[Result "0-1"]
[Board "43"]
[TimeControl "180+1"]
[WhiteFideId "21832030"]
[BlackFideId "14407701"]
[WhiteElo "2470"]
[BlackElo "2384"]
[WhiteTeam "POL"]
[BlackTeam "BIH"]
[WhiteClock "0:00:00"]
[BlackClock "0:00:28"]

1. e4 {[%clk 0:03:00]}  e6 {[%clk 0:03:00]} 2. d4 {[%clk 0:02:58]}  d5 {[%clk 0:03:00]} 3. e5 {[%clk 0:02:59]}  c5 {[%clk 0:03:01]} 4. c3 {[%clk 0:02:59]}  Nc6 {[%clk 0:03:01]} 5. Nf3 {[%clk 0:03:00]}  Bd7 {[%clk 0:03:02]} 6. Be2 {[%clk 0:03:00]}  Nge7 {[%clk 0:03:02]} 7. O-O {[%clk 0:02:59]}  cxd4 {[%clk 0:02:57]} 8. cxd4 {[%clk 0:02:59]}  Nf5 {[%clk 0:02:56]} 9. Na3 {[%clk 0:03:00]}  Bxa3 {[%clk 0:02:34]} 10. bxa3 {[%clk 0:03:00]}  Qb6 {[%clk 0:02:34]} 11. Be3 {[%clk 0:02:43]}  Nxe3 {[%clk 0:02:31]} 12. fxe3 {[%clk 0:02:43]}  Qa5 {[%clk 0:02:31]} 13. Qd3 {[%clk 0:02:22]}  h6 {[%clk 0:02:16]} 14. Rf2 {[%clk 0:02:20]}  O-O {[%clk 0:02:15]} 15. Raf1 {[%clk 0:02:20]}  Rac8 {[%clk 0:02:13]} 16. Bd1 {[%clk 0:02:15]}  Ne7 {[%clk 0:02:11]} 17. a4 {[%clk 0:01:44]}  Rc3 {[%clk 0:01:56]} 18. Qd2 {[%clk 0:01:40]}  Nf5 {[%clk 0:01:43]} 19. Re1 {[%clk 0:01:19]}  Rfc8 {[%clk 0:01:32]} 20. g4 {[%clk 0:01:13]}  Ne7 {[%clk 0:01:33]} 21. Ref1 {[%clk 0:00:50]}  Bxa4 {[%clk 0:01:15]} 22. Bxa4 {[%clk 0:00:50]}  Qxa4 {[%clk 0:01:16]} 23. Ne1 {[%clk 0:00:51]}  Qe8 {[%clk 0:01:15]} 24. Nd3 {[%clk 0:00:44]}  b6 {[%clk 0:01:02]} 25. Nc5 {[%clk 0:00:37]}  Rc4 {[%clk 0:01:02]} 26. Nd3 {[%clk 0:00:25]}  Ng6 {[%clk 0:01:00]} 27. Rxf7 {[%clk 0:00:16]}  Qxf7 {[%clk 0:01:01]} 28. Rxf7 {[%clk 0:00:17]}  Kxf7 {[%clk 0:01:01]} 29. h4 {[%clk 0:00:16]}  Rc2 {[%clk 0:01:01]} 30. Qb4 {[%clk 0:00:15]}  Rxa2 {[%clk 0:00:50]} 31. Qd6 {[%clk 0:00:10]}  Rcc2 {[%clk 0:00:39]} 32. Ne1 {[%clk 0:00:05]}  Rc1 {[%clk 0:00:34]} 33. Kf1 {[%clk 0:00:04]}  Raa1 {[%clk 0:00:34]} 34. g5 {[%clk 0:00:03]}  Rxe1+ {[%clk 0:00:35]} 35. Kf2 {[%clk 0:00:03]}  hxg5 {[%clk 0:00:35]} 36. Qd7+ {[%clk 0:00:02]}  Ne7 {[%clk 0:00:36]} 37. hxg5 {[%clk 0:00:03]}  Rf1+ {[%clk 0:00:34]} 38. Ke2 {[%clk 0:00:03]}  Rg1 {[%clk 0:00:29]} 39. Qb7 {[%clk 0:00:01]}  Rxg5 {[%clk 0:00:28]} 40. Qa8 {[%clk 0:00:02]}  Rg2+ {[%clk 0:00:27]} 41. Kf3 {[%clk 0:00:00]}  Raa2 {[%clk 0:00:28]} 0-1

[Event "December 19 Early 2023"]
[Site "https://www.chess.com"]
[Date "2023.12.19"]
[Round "11"]
[White "Postny, Evgeny"]
[Black "Saravana, Krishnan P."]
[Result "1-0"]
[Board "44"]
[TimeControl "180+1"]
[WhiteFideId "2804344"]
[BlackFideId "5018382"]
[WhiteElo "2505"]
[BlackElo "2167"]
[WhiteTeam "ISR"]
[BlackTeam "IND"]
[WhiteClock "0:00:09"]
[BlackClock "0:00:00"]

1. e4 {[%clk 0:03:00]}  c6 {[%clk 0:02:59]} 2. Nc3 {[%clk 0:02:58]}  d5 {[%clk 0:02:59]} 3. Nf3 {[%clk 0:02:59]}  dxe4 {[%clk 0:02:58]} 4. Nxe4 {[%clk 0:02:59]}  Nf6 {[%clk 0:02:59]} 5. Qe2 {[%clk 0:02:57]}  Nxe4 {[%clk 0:02:59]} 6. Qxe4 {[%clk 0:02:58]}  Be6 {[%clk 0:02:59]} 7. d4 {[%clk 0:02:57]}  Bd5 {[%clk 0:02:58]} 8. Qd3 {[%clk 0:02:57]}  Bxf3 {[%clk 0:02:58]} 9. Qxf3 {[%clk 0:02:57]}  Qxd4 {[%clk 0:02:57]} 10. c3 {[%clk 0:02:57]}  Qd5 {[%clk 0:02:57]} 11. Qg3 {[%clk 0:02:54]}  Nd7 {[%clk 0:02:56]} 12. Be2 {[%clk 0:02:53]}  Qe5 {[%clk 0:02:56]} 13. Bf4 {[%clk 0:02:53]}  Qe4 {[%clk 0:02:53]} 14. Rd1 {[%clk 0:02:49]}  e6 {[%clk 0:02:45]} 15. Be3 {[%clk 0:02:38]}  Qe5 {[%clk 0:02:40]} 16. Bf4 {[%clk 0:02:33]}  Qe4 {[%clk 0:02:40]} 17. Bd6 {[%clk 0:02:25]}  Bxd6 {[%clk 0:02:36]} 18. Qxd6 {[%clk 0:02:25]}  O-O-O {[%clk 0:02:35]} 19. Qg3 {[%clk 0:02:15]}  Ne5 {[%clk 0:02:32]} 20. O-O {[%clk 0:01:55]}  Qxe2 {[%clk 0:02:27]} 21. Rde1 {[%clk 0:01:55]}  Qxb2 {[%clk 0:02:27]} 22. Rxe5 {[%clk 0:01:49]}  Rd7 {[%clk 0:02:07]} 23. Qxg7 {[%clk 0:01:48]}  Rhd8 {[%clk 0:02:07]} 24. Ree1 {[%clk 0:01:43]}  Qxa2 {[%clk 0:01:53]} 25. Qxh7 {[%clk 0:01:42]}  a5 {[%clk 0:01:53]} 26. h4 {[%clk 0:01:35]}  a4 {[%clk 0:01:53]} 27. Ra1 {[%clk 0:01:33]}  Qc4 {[%clk 0:01:52]} 28. g3 {[%clk 0:01:31]}  f5 {[%clk 0:01:43]} 29. Qh6 {[%clk 0:01:25]}  Rg8 {[%clk 0:01:39]} 30. Rfe1 {[%clk 0:01:19]}  f4 {[%clk 0:01:33]} 31. Qxe6 {[%clk 0:01:11]}  Qxe6 {[%clk 0:01:29]} 32. Rxe6 {[%clk 0:01:12]}  fxg3 {[%clk 0:01:24]} 33. Rxa4 {[%clk 0:01:09]}  Kc7 {[%clk 0:01:22]} 34. h5 {[%clk 0:00:44]}  Rf7 {[%clk 0:01:12]} 35. f4 {[%clk 0:00:35]}  Rd7 {[%clk 0:00:53]} 36. Rg6 {[%clk 0:00:32]}  Rh8 {[%clk 0:00:50]} 37. Ra5 {[%clk 0:00:28]}  Rd3 {[%clk 0:00:48]} 38. h6 {[%clk 0:00:22]}  Rxc3 {[%clk 0:00:46]} 39. Rh5 {[%clk 0:00:20]}  Rc2 {[%clk 0:00:32]} 40. Rxg3 {[%clk 0:00:15]}  Ra8 {[%clk 0:00:26]} 41. Kh1 {[%clk 0:00:13]}  Rd2 {[%clk 0:00:17]} 42. h7 {[%clk 0:00:12]}  Rdd8 {[%clk 0:00:17]} 43. Rg7+ {[%clk 0:00:12]}  Kb6 {[%clk 0:00:15]} 44. f5 {[%clk 0:00:13]}  Rf8 {[%clk 0:00:15]} 45. Kg2 {[%clk 0:00:11]}  Rh8 {[%clk 0:00:13]} 46. Kg3 {[%clk 0:00:11]}  Raf8 {[%clk 0:00:13]} 47. Kg4 {[%clk 0:00:11]}  Kc5 {[%clk 0:00:13]} 48. Kg5 {[%clk 0:00:11]}  b5 {[%clk 0:00:13]} 49. f6 {[%clk 0:00:09]}  Kd6 {[%clk 0:00:12]} 50. Kg6 {[%clk 0:00:08]}  Ke6 {[%clk 0:00:11]} 51. Re7+ {[%clk 0:00:07]}  Kd6 {[%clk 0:00:11]} 52. Re1 {[%clk 0:00:06]}  b4 {[%clk 0:00:10]} 53. Rd1+ {[%clk 0:00:07]}  Kc7 {[%clk 0:00:09]} 54. Rh4 {[%clk 0:00:06]}  c5 {[%clk 0:00:09]} 55. Rh5 {[%clk 0:00:06]}  Kb6 {[%clk 0:00:08]} 56. Rd6+ {[%clk 0:00:06]}  Kb5 {[%clk 0:00:08]} 57. Rdd5 {[%clk 0:00:06]}  Rc8 {[%clk 0:00:08]} 58. Kg7 {[%clk 0:00:07]}  b3 {[%clk 0:00:08]} 59. f7 {[%clk 0:00:07]}  b2 {[%clk 0:00:05]} 60. Rd1 {[%clk 0:00:07]}  Kb4 {[%clk 0:00:05]} 61. Rb1 {[%clk 0:00:07]}  Kb3 {[%clk 0:00:05]} 62. Rh2 {[%clk 0:00:08]}  c4 {[%clk 0:00:01]} 63. Rbxb2+ {[%clk 0:00:09]}  Kc3 {[%clk 0:00:02]} 64. Rbc2+ {[%clk 0:00:09]}  Kd4 {[%clk 0:00:02]} 65. Rcd2+ {[%clk 0:00:09]}  Kc5 {[%clk 0:00:02]} 66. Rdf2 {[%clk 0:00:09]}  Rcf8 {[%clk 0:00:01]} 67. Rf3 {[%clk 0:00:08]}  Kd6 {[%clk 0:00:01]} 68. Rh6+ {[%clk 0:00:08]}  Ke7 {[%clk 0:00:01]} 69. Re3+ {[%clk 0:00:08]}  Kd7 {[%clk 0:00:00]} 70. Rh5 {[%clk 0:00:09]} 1-0

[Event "December 19 Early 2023"]
[Site "https://www.chess.com"]
[Date "2023.12.19"]
[Round "11"]
[White "Kvaloy, Aksel Bu"]
[Black "Chan, Yi Ren Daniel"]
[Result "0-1"]
[Board "45"]
[TimeControl "180+1"]
[WhiteFideId "1528815"]
[BlackFideId "5801583"]
[WhiteElo "2265"]
[BlackElo "2375"]
[WhiteTeam "NOR"]
[BlackTeam "SGP"]
[WhiteClock "0:01:29"]
[BlackClock "0:01:31"]

1. d4 {[%clk 0:02:57]}  Nf6 {[%clk 0:02:58]} 2. Nf3 {[%clk 0:02:56]}  d5 {[%clk 0:02:56]} 3. Bf4 {[%clk 0:02:57]}  Bf5 {[%clk 0:02:54]} 4. e3 {[%clk 0:02:56]}  c6 {[%clk 0:02:54]} 5. Nbd2 {[%clk 0:02:56]}  e6 {[%clk 0:02:54]} 6. Be2 {[%clk 0:02:57]}  Nbd7 {[%clk 0:02:52]} 7. Ne5 {[%clk 0:02:57]}  h6 {[%clk 0:02:51]} 8. g4 {[%clk 0:02:57]}  Bh7 {[%clk 0:02:49]} 9. h4 {[%clk 0:02:57]}  Nxe5 {[%clk 0:02:46]} 10. dxe5 {[%clk 0:02:49]}  Ne4 {[%clk 0:02:46]} 11. Nxe4 {[%clk 0:02:39]}  Bxe4 {[%clk 0:02:47]} 12. f3 {[%clk 0:02:35]}  Bg6 {[%clk 0:02:40]} 13. h5 {[%clk 0:02:34]}  Bh7 {[%clk 0:02:40]} 14. Bd3 {[%clk 0:02:32]}  Qb6 {[%clk 0:02:22]} 15. Bxh7 {[%clk 0:02:31]}  Rxh7 {[%clk 0:02:23]} 16. Qd3 {[%clk 0:02:32]}  Rh8 {[%clk 0:02:09]} 17. O-O-O {[%clk 0:02:30]}  O-O-O {[%clk 0:02:08]} 18. e4 {[%clk 0:02:27]}  Be7 {[%clk 0:02:07]} 19. Be3 {[%clk 0:02:20]}  Qa5 {[%clk 0:02:05]} 20. exd5 {[%clk 0:02:17]}  Rxd5 {[%clk 0:02:00]} 21. Qb3 {[%clk 0:02:08]}  Rxe5 {[%clk 0:01:56]} 22. Bf4 {[%clk 0:02:05]}  Rb5 {[%clk 0:01:49]} 23. Qc4 {[%clk 0:01:58]}  Rb4 {[%clk 0:01:39]} 24. Qc3 {[%clk 0:01:49]}  Bf6 {[%clk 0:01:31]} 25. Qd2 {[%clk 0:01:29]}  Bxb2+ {[%clk 0:01:31]} 0-1